fUST/lending_fUST_20250722
["ID","MTS","AMOUNT","RATE_DAILY","PERIOD"]
[373932356,1753157445277,-460.0,0.00017317,2]
[373932357,1753157445286,-460.0,0.00017317,2]
[373932358,1753157445295,-460.0,0.00017317,2]
[373932359,1753157445305,-460.0,0.00017317,2]
[373932360,1753157445315,-460.0,0.00017317,2]
[373932361,1753157445324,-460.0,0.00017317,2]
[373932362,1753157445334,-3276.24,0.00017317,2]
[373932363,1753157445344,-663.7,0.00017317,2]
[373932364,1753157445354,-460.0,0.00017317,2]
[373932365,1753157445363,-1615.58,0.00017317,2]
[373932366,1753157445373,-460.0,0.00017317,2]
[373932367,1753157445382,-4769.0,0.00017317,2]
[373932368,1753157445393,-471.62674155,0.00017317,2]
[373932369,1753157445403,-460.0,0.00017317,2]
[373932370,1753157445413,-460.0,0.00017317,2]
[373932371,1753157445422,-961.28,0.00017317,2]
[373932372,1753157445432,-460.0,0.00017317,2]
[373932373,1753157445441,-153.384364,0.00017317,2]
[373932374,1753157445451,-151.0,0.00017317,2]
[373932375,1753157445460,-460.0,0.00017318,2]
[373932376,1753157445470,-642.29,0.00017318,2]
[373932377,1753157445479,-460.0,0.00017318,2]
[373932378,1753157445489,-574.98,0.00017318,2]
[373932379,1753157445498,-470.6882384,0.00017318,2]
[373932380,1753157445507,-472.43,0.00017318,2]
[373932381,1753157445517,-460.0,0.00017318,2]
[373932382,1753157445526,-366.30638691,0.00017318,2]
[373932383,1753157445536,-460.0,0.00017318,2]
[373932384,1753157445545,-462.92497288,0.00017318,2]
[373932385,1753157445555,-460.0,0.00017318,2]
[373932386,1753157445564,-460.0,0.00017318,2]
[373932387,1753157445573,-460.0,0.00017318,2]
[373932388,1753157445583,-460.0,0.00017318,2]
[373932389,1753157445592,-460.0,0.00017318,2]
[373932390,1753157445601,-460.0,0.00017318,2]
[373932391,1753157445611,-477.28929628,0.00017318,2]
[373932392,1753157445620,-460.0,0.00017318,2]
[373932393,1753157445629,-460.0,0.00017318,2]
[373932394,1753157445638,-471.07513265,0.00017318,2]
[373932395,1753157445649,-460.0,0.00017318,2]
[373932396,1753157445658,-399.91973278,0.00017318,2]
[373932397,1753157445668,-741.22,0.00017318,2]
[373932398,1753157445678,-460.0,0.00017318,2]
[373932399,1753157445687,-460.0,0.00017318,2]
[373932400,1753157445697,-894.38,0.00017318,2]
[373932401,1753157445707,-460.0,0.00017318,2]
[373932402,1753157445718,-460.0,0.00017318,2]
[373932403,1753157445729,-460.0,0.00017318,2]
[373932404,1753157445739,-502.91840819,0.00017318,2]
[373932405,1753157445748,-464.82813816,0.00017318,2]
[373932406,1753157445758,-463.01139426,0.00017318,2]
[373932407,1753157445768,-464.1256484,0.00017318,2]
[373932408,1753157445778,-460.0,0.00017318,2]
[373932409,1753157445787,-460.0,0.00017318,2]
[373932410,1753157445800,-460.0,0.00017318,2]
[373932411,1753157445809,-460.0,0.00017318,2]
[373932412,1753157445819,-523.88199378,0.00017318,2]
[373932413,1753157445828,-460.0,0.00017318,2]
[373932414,1753157445838,-1857.94,0.00017318,2]
[373932415,1753157445848,-151.0,0.00017318,2]
[373932416,1753157445857,-460.0,0.00017318,2]
[373932417,1753157445866,-151.0,0.0001732,2]
[373932418,1753157445876,-462.73118339,0.0001732,2]
[373932419,1753157445886,-460.0,0.0001732,2]
[373932421,1753157445895,-151.0,0.0001732,2]
[373932422,1753157445909,-151.0,0.0001732,2]
[373932423,1753157445918,-460.0,0.0001732,2]
[373932424,1753157445928,-151.0,0.0001732,2]
[373932425,1753157445937,-154.603585,0.0001732,2]
[373932426,1753157445946,-460.0,0.0001732,2]
[373932427,1753157445956,-471.14596406,0.0001732,2]
[373932428,1753157445966,-151.0,0.0001732,2]
[373932429,1753157445975,-470.42,0.0001732,2]
[373932430,1753157445985,-151.0,0.0001732,2]
[373932431,1753157445995,-151.0,0.0001732,2]
[373932432,1753157446004,-151.0,0.0001732,2]
[373932433,1753157446013,-151.0,0.0001732,2]
[373932434,1753157446023,-10375.95,0.0001732,2]
[373932435,1753157446032,-2343.18369426,0.00017322,2]
[373932436,1753157446042,-507.0,0.00017363,2]
[373932437,1753157446051,-500.0,0.00017373,2]
[373932438,1753157446060,-151.0,0.000174,2]
[373932439,1753157446070,-153.010298,0.00017422,2]
[373932440,1753157446079,-2396.01,0.00017422,2]
[373932441,1753157446088,-151.0,0.00017422,2]
[373932442,1753157446097,-151.0,0.00017422,2]
[373932444,1753157446106,-2547.56,0.00017422,2]
[373932446,1753157446116,-151.0,0.00017422,2]
[373932448,1753157446125,-3430.95,0.00017422,2]
[373932449,1753157446134,-460.0,0.00017422,2]
[373932451,1753157446144,-987.16,0.00017422,2]
[373932452,1753157446156,-3208.19,0.00017422,2]
[373932453,1753157446166,-1890.9,0.00017422,2]
[373932454,1753157446176,-462.41980306,0.00017422,2]
[373932455,1753157446185,-3213.13,0.00017422,2]
[373932456,1753157446194,-460.0,0.00017422,2]
[373932457,1753157446204,-460.0,0.00017422,2]
[373932458,1753157446213,-154.05177,0.00017422,2]
[373932459,1753157446222,-150.0,0.00017479,2]
[373932460,1753157446232,-170.48544538,0.00017491,2]
[373932461,1753157446241,-460.0,0.00017491,2]
[373932462,1753157446251,-462.90058989,0.00017491,2]
[373932463,1753157446261,-460.0,0.00017491,2]
[373932464,1753157446270,-460.0,0.00017491,2]
[373932465,1753157446279,-923.14,0.00017491,2]
[373932466,1753157446288,-1019.9,0.00017491,2]
[373932467,1753157446298,-3216.22,0.00017491,2]
[373932468,1753157446307,-464.0640637,0.00017491,2]
[373932469,1753157446317,-460.0,0.00017492,2]
[373932470,1753157446326,-460.0,0.00017492,2]
[373932471,1753157446335,-460.0,0.00017492,2]
[373932472,1753157446345,-5107.47,0.00017492,2]
[373932473,1753157446354,-1520.76,0.00017492,2]
[373932474,1753157446363,-1027.18,0.00017492,2]
[373932475,1753157446372,-460.0,0.00017492,2]
[373932476,1753157446381,-460.0,0.00017492,2]
[373932477,1753157446391,-460.0,0.00017492,2]
[373932478,1753157446402,-611.75,0.00017492,2]
[373932479,1753157446412,-4817.64,0.00017492,2]
[373932480,1753157446421,-460.0,0.00017492,2]
[373932481,1753157446431,-1033.11,0.00017492,2]
[373932482,1753157446440,-460.0,0.00017492,2]
[373932483,1753157446450,-2115.93,0.00017492,2]
[373932484,1753157446459,-1244.02,0.00017492,2]
[373932485,1753157446468,-151.0,0.00017493,2]
[373932486,1753157446478,-151.0,0.00017493,2]
[373932487,1753157446487,-151.0,0.00017493,2]
[373932488,1753157446497,-716.0,0.00017493,2]
[373932489,1753157446506,-296.32336965,0.00017493,2]
[373932490,1753157446515,-154.22183122,0.00017493,2]
[373932491,1753157446525,-460.0,0.00017493,2]
[373932492,1753157446534,-460.0,0.00017493,2]
[373932493,1753157446544,-460.0,0.00017493,2]
[373932494,1753157446553,-460.0,0.00017493,2]
[373932495,1753157446563,-460.0,0.00017493,2]
[373932496,1753157446572,-460.0,0.00017493,2]
[373932497,1753157446581,-460.0,0.00017493,2]
[373932498,1753157446591,-460.0,0.00017493,2]
[373932499,1753157446601,-460.0,0.00017493,2]
[373932500,1753157446611,-460.0,0.00017493,2]
[373932501,1753157446622,-460.0,0.00017493,2]
[373932502,1753157446632,-713.91,0.00017493,2]
[373932503,1753157446642,-463.07156495,0.00017493,2]
[373932504,1753157446653,-460.0,0.00017493,2]
[373932505,1753157446663,-460.0,0.00017493,2]
[373932506,1753157446672,-460.0,0.00017493,2]
[373932507,1753157446682,-460.0,0.00017493,2]
[373932508,1753157446692,-460.0,0.00017493,2]
[373932509,1753157446701,-466.04393836,0.00017493,2]
[373932510,1753157446711,-562.61413132,0.00017493,2]
[373932511,1753157446723,-460.0,0.00017493,2]
[373932520,1753157446837,-460.0,0.00017493,2]
[373932522,1753157446848,-151.0,0.00017493,2]
[373932524,1753157446857,-527.76,0.00017493,2]
[373932526,1753157446866,-460.0,0.00017493,2]
[373932528,1753157446876,-460.0,0.00017493,2]
[373932529,1753157446885,-462.67480493,0.00017493,2]
[373932531,1753157446895,-486.75,0.00017493,2]
[373932533,1753157446906,-460.0,0.00017493,2]
[373932535,1753157446915,-537.44,0.00017493,2]
[373932537,1753157446925,-460.0,0.00017493,2]
[373932539,1753157446934,-460.0,0.00017493,2]
[373932541,1753157446943,-515.51,0.00017493,2]
[373932543,1753157446952,-460.0,0.00017493,2]
[373932545,1753157446961,-460.0,0.00017493,2]
[373932547,1753157446970,-460.0,0.00017493,2]
[373932549,1753157446979,-460.0,0.00017493,2]
[373932551,1753157446988,-460.0,0.00017493,2]
[373932553,1753157446997,-460.0,0.00017493,2]
[373932555,1753157447007,-460.0,0.00017493,2]
[373932557,1753157447015,-462.826328,0.00017493,2]
[373932559,1753157447025,-460.0,0.00017493,2]
[373932561,1753157447034,-9991.89,0.00017493,2]
[373932563,1753157447043,-460.0,0.00017493,2]
[373932565,1753157447053,-460.0,0.00017493,2]
[373932567,1753157447062,-460.0,0.00017493,2]
[373932569,1753157447071,-460.0,0.00017493,2]
[373932570,1753157447080,-460.0,0.00017493,2]
[373932572,1753157447089,-460.0,0.00017493,2]
[373932574,1753157447098,-460.0,0.00017493,2]
[373932576,1753157447108,-901.37,0.00017493,2]
[373932578,1753157447117,-460.0,0.00017493,2]
[373932580,1753157447127,-460.0,0.00017493,2]
[373932582,1753157447136,-460.0,0.00017493,2]
[373932584,1753157447145,-462.39007793,0.00017493,2]
[373932586,1753157447157,-460.0,0.00017493,2]
[373932588,1753157447166,-460.0,0.00017493,2]
[373932590,1753157447175,-460.0,0.00017493,2]
[373932592,1753157447184,-460.0,0.00017493,2]
[373932594,1753157447193,-460.0,0.00017493,2]
[373932596,1753157447203,-460.0,0.00017493,2]
[373932598,1753157447212,-460.0,0.00017493,2]
[373932600,1753157447222,-482.76717015,0.00017493,2]
[373932602,1753157447231,-1172.04,0.00017493,2]
[373932604,1753157447240,-460.0,0.00017493,2]
[373932606,1753157447249,-460.0,0.00017493,2]
[373932608,1753157447258,-460.0,0.00017493,2]
[373932610,1753157447268,-460.0,0.00017493,2]
[373932611,1753157447277,-1438.68,0.00017493,2]
[373932612,1753157447286,-460.0,0.00017493,2]
[373932613,1753157447295,-1388.47,0.00017493,2]
[373932614,1753157447304,-460.0,0.00017493,2]
[373932615,1753157447314,-959.19,0.00017493,2]
[373932616,1753157447323,-460.0,0.00017493,2]
[373932617,1753157447333,-460.0,0.00017493,2]
[373932618,1753157447342,-460.0,0.00017493,2]
[373932619,1753157447351,-460.0,0.00017493,2]
[373932620,1753157447360,-460.0,0.00017493,2]
[373932621,1753157447370,-557.01906639,0.00017493,2]
[373932622,1753157447379,-460.0,0.00017493,2]
[373932623,1753157447389,-460.0,0.00017493,2]
[373932624,1753157447400,-460.0,0.00017493,2]
[373932625,1753157447410,-983.0,0.00017493,2]
[373932626,1753157447422,-460.0,0.00017493,2]
[373932627,1753157447431,-460.0,0.00017493,2]
[373932628,1753157447441,-460.0,0.00017493,2]
[373932629,1753157447450,-4717.98,0.00017493,2]
[373932630,1753157447459,-1144.31,0.00017493,2]
[373932631,1753157447468,-460.0,0.00017493,2]
[373932632,1753157447478,-460.0,0.00017493,2]
[373932633,1753157447487,-1482.56,0.00017493,2]
[373932634,1753157447496,-460.0,0.00017493,2]
[373932635,1753157447505,-460.0,0.00017493,2]
[373932636,1753157447515,-460.0,0.00017493,2]
[373932637,1753157447524,-460.0,0.00017493,2]
[373932638,1753157447533,-1287.62,0.00017493,2]
[373932639,1753157447542,-895.53,0.00017493,2]
[373932641,1753157447552,-460.0,0.00017493,2]
[373932642,1753157447562,-2097.13,0.00017493,2]
[373932644,1753157447572,-460.0,0.00017493,2]
[373932646,1753157447581,-460.0,0.00017493,2]
[373932648,1753157447590,-460.0,0.00017493,2]
[373932650,1753157447600,-746.5,0.00017493,2]
[373932652,1753157447609,-460.0,0.00017493,2]
[373932654,1753157447619,-460.0,0.00017493,2]
[373932656,1753157447628,-1436.52,0.00017493,2]
[373932658,1753157447638,-968.2,0.00017493,2]
[373932660,1753157447649,-460.0,0.00017493,2]
[373932662,1753157447661,-151.0,0.00017493,2]
[373932664,1753157447671,-3766.72,0.00017493,2]
[373932666,1753157447681,-203.16922162,0.00017498,2]
[373932668,1753157447691,-151.0,0.000175,2]
[373932670,1753157447701,-151.0,0.00017531,2]
[373932672,1753157447710,-460.0,0.0001759,2]
[373932674,1753157447721,-460.0,0.0001759,2]
[373932676,1753157447733,-151.0,0.0001759,2]
[373932678,1753157447743,-151.0,0.0001759,2]
[373932680,1753157447752,-586.24,0.0001759,2]
[373932682,1753157447762,-875.56,0.0001759,2]
[373932684,1753157447774,-1107.94,0.0001759,2]
[373932686,1753157447783,-1309.67,0.0001759,2]
[373932688,1753157447793,-472.43,0.0001759,2]
[373932690,1753157447803,-460.0,0.0001759,2]
[373932692,1753157447813,-1235.69,0.0001759,2]
[373932694,1753157447823,-1109.78,0.0001759,2]
[373932696,1753157447833,-1365.04,0.0001759,2]
[373932698,1753157447843,-1373.31,0.0001759,2]
[373932700,1753157447854,-1034.84,0.0001759,2]
[373932702,1753157447863,-947.0,0.00017591,2]
[373932704,1753157447873,-151.0,0.00017591,2]
[373932706,1753157447884,-460.0,0.00017591,2]
[373932708,1753157447893,-460.0,0.00017591,2]
[373932710,1753157447908,-568.45550083,0.00017591,2]
[373932712,1753157447918,-460.0,0.00017591,2]
[373932714,1753157447929,-531.82300881,0.00017591,2]
[373932716,1753157447939,-476.08619812,0.00017591,2]
[373932718,1753157447949,-460.0,0.00017591,2]
[373932720,1753157447959,-460.0,0.00017591,2]
[373932722,1753157447968,-474.19355131,0.00017591,2]
[373932724,1753157447979,-460.0,0.00017591,2]
[373932726,1753157447989,-460.0,0.00017591,2]
[373932728,1753157447998,-460.0,0.00017591,2]
[373932730,1753157448008,-574.23,0.00017591,2]
[373932732,1753157448019,-460.0,0.00017591,2]
[373932734,1753157448030,-1368.84,0.00017591,2]
[373932736,1753157448040,-460.0,0.00017591,2]
[373932738,1753157448051,-1248.03,0.00017591,2]
[373932740,1753157448062,-734.62,0.00017591,2]
[373932742,1753157448072,-599.42932843,0.00017591,2]
[373932744,1753157448082,-460.0,0.00017591,2]
[373932746,1753157448092,-1479.12,0.00017591,2]
[373932748,1753157448103,-493.18,0.00017591,2]
[373932750,1753157448113,-460.0,0.00017591,2]
[373932752,1753157448123,-460.0,0.00017591,2]
[373932754,1753157448133,-662.43,0.00017591,2]
[373932756,1753157448143,-460.0,0.00017591,2]
[373932758,1753157448157,-460.0,0.00017591,2]
[373932760,1753157448167,-460.0,0.00017591,2]
[373932762,1753157448178,-894.47,0.00017591,2]
[373932764,1753157448188,-460.0,0.00017591,2]
[373932766,1753157448198,-462.41076621,0.00017591,2]
[373932768,1753157448209,-460.0,0.00017591,2]
[373932770,1753157448219,-460.0,0.00017591,2]
[373932772,1753157448230,-1792.3,0.00017591,2]
[373932774,1753157448241,-155.366239,0.00017591,2]
[373932776,1753157448251,-589.76,0.00017591,2]
[373932778,1753157448262,-585.75,0.00017591,2]
[373932780,1753157448271,-460.0,0.00017591,2]
[373932782,1753157448281,-1492.63,0.00017591,2]
[373932784,1753157448290,-476.21388117,0.00017591,2]
[373932786,1753157448300,-467.56894109,0.00017591,2]
[373932788,1753157448309,-642.39,0.00017591,2]
[373932790,1753157448320,-460.0,0.00017591,2]
[373932792,1753157448329,-460.0,0.00017591,2]
[373932794,1753157448339,-460.0,0.00017591,2]
[373932796,1753157448349,-460.0,0.00017591,2]
[373932798,1753157448359,-460.0,0.00017591,2]
[373932800,1753157448369,-460.0,0.00017591,2]
[373932802,1753157448379,-460.0,0.00017591,2]
[373932804,1753157448388,-154.469169,0.00017591,2]
[373932806,1753157448398,-151.0,0.00017591,2]
[373932808,1753157448409,-460.0,0.00017591,2]
[373932810,1753157448419,-460.0,0.00017591,2]
[373932812,1753157448429,-3276.24,0.00017591,2]
[373932814,1753157448439,-151.0,0.00017591,2]
[373932816,1753157448449,-663.7,0.00017591,2]
[373932818,1753157448459,-460.0,0.00017591,2]
[373932820,1753157448469,-1615.58,0.00017591,2]
[373932822,1753157448479,-460.0,0.00017591,2]
[373932824,1753157448489,-4769.0,0.00017591,2]
[373932826,1753157448499,-151.0,0.00017591,2]
[373932828,1753157448509,-281.16688588,0.00017591,2]
[373932830,1753157448518,-167.099017,0.00017591,2]
[373932832,1753157448528,-460.0,0.00017591,2]
[373932834,1753157448538,-961.28,0.00017591,2]
[373932836,1753157448548,-642.29,0.00017592,2]
[373932838,1753157448558,-460.0,0.00017592,2]
[373932840,1753157448568,-574.98,0.00017592,2]
[373932842,1753157448578,-472.43,0.00017592,2]
[373932844,1753157448587,-460.0,0.00017592,2]
[373932846,1753157448597,-465.66270622,0.00017592,2]
[373932848,1753157448607,-460.0,0.00017592,2]
[373932850,1753157448617,-460.0,0.00017592,2]
[373932852,1753157448626,-460.0,0.00017592,2]
[373932854,1753157448636,-460.0,0.00017592,2]
[373932856,1753157448647,-468.35448005,0.00017592,2]
[373932858,1753157448660,-462.77438072,0.00017592,2]
[373932860,1753157448670,-741.22,0.00017592,2]
[373932862,1753157448681,-460.0,0.00017592,2]
[373932864,1753157448691,-151.0,0.00017592,2]
[373932866,1753157448701,-460.0,0.00017592,2]
[373932868,1753157448711,-894.38,0.00017592,2]
[373932870,1753157448722,-460.0,0.00017592,2]
[373932872,1753157448733,-463.87222428,0.00017592,2]
[373932874,1753157448743,-460.0,0.00017592,2]
[373932876,1753157448753,-460.0,0.00017592,2]
[373932878,1753157448765,-460.0,0.00017592,2]
[373932880,1753157448774,-460.0,0.00017592,2]
[373932882,1753157448785,-1003.583072,0.00017592,2]
[373932884,1753157448796,-1003.583072,0.00017592,2]
[373932886,1753157448806,-460.0,0.00017592,2]
[373932888,1753157448816,-151.0,0.00017592,2]
[373932891,1753157448826,-151.0,0.00017592,2]
[373932903,1753157448836,-460.0,0.00017592,2]
[373932905,1753157448951,-1857.94,0.00017592,2]
[373932907,1753157448961,-151.0,0.00017592,2]
[373932909,1753157448971,-460.0,0.00017592,2]
[373932911,1753157448981,-464.02680885,0.00017594,2]
[373932913,1753157448991,-151.0,0.00017594,2]
[373932915,1753157449000,-151.0,0.00017594,2]
[373932917,1753157449010,-460.0,0.00017594,2]
[373932919,1753157449020,-241.94035,0.00017594,2]
[373932921,1753157449030,-151.0,0.00017594,2]
[373932923,1753157449040,-151.0,0.00017594,2]
[373932925,1753157449050,-151.0,0.00017594,2]
[373932927,1753157449059,-151.0,0.00017594,2]
[373932929,1753157449068,-153.953666,0.00017594,2]
[373932931,1753157449078,-151.0,0.00017594,2]
[373932933,1753157449087,-460.0,0.00017594,2]
[373932935,1753157449096,-470.42,0.00017594,2]
[373932937,1753157449106,-10375.95,0.00017594,2]
[373932939,1753157449116,-151.0,0.000176,2]
[373932940,1753157449125,-503.55156825,0.00017621,2]
[373932943,1753157449136,-1000.0,0.00017621,2]
[373932945,1753157449145,-502.9902973,0.00017621,2]
[373932946,1753157449157,-508.86688165,0.00017621,2]
[373932948,1753157449168,-1000.0,0.00017621,2]
[373932950,1753157449177,-1000.0,0.00017621,2]
[373932952,1753157449187,-502.05907152,0.00017621,2]
[373932954,1753157449197,-1000.0,0.00017621,2]
[373932956,1753157449207,-1000.0,0.00017621,2]
[373932958,1753157449216,-166.34401321,0.00017621,2]
[373932960,1753157449226,-1000.0,0.00017621,2]
[373932963,1753157449237,-1000.0,0.00017621,2]
[373932964,1753157449246,-506.58093708,0.00017621,2]
[373932966,1753157449256,-489.29898678,0.00017621,2]
[373932968,1753157449266,-1000.0,0.00017621,2]
[373932971,1753157449275,-504.81165985,0.00017621,2]
[373932972,1753157449285,-502.54882074,0.00017621,2]
[373932974,1753157449295,-621.02837529,0.00017621,2]
[373932976,1753157449305,-500.69775639,0.00017621,2]
[373932978,1753157449315,-1006.42868241,0.00017621,2]
[373932981,1753157449325,-502.88664607,0.00017621,2]
[373932983,1753157449334,-503.36862493,0.00017621,2]
[373932985,1753157449344,-1000.0,0.00017621,2]
[373932987,1753157449354,-1000.0,0.00017621,2]
[373932989,1753157449364,-8154.43799326,0.00017636,2]
[373932991,1753157449374,-723.0,0.0001769,2]
[373932993,1753157449383,-151.0,0.00017695,2]
[373932995,1753157449393,-2396.01,0.00017696,2]
[373932997,1753157449403,-152.614176,0.00017696,2]
[373932998,1753157449412,-2547.56,0.00017696,2]
[373933000,1753157449422,-3430.95,0.00017696,2]
[373933003,1753157449432,-460.0,0.00017696,2]
[373933005,1753157449442,-987.16,0.00017696,2]
[373933007,1753157449452,-3208.19,0.00017696,2]
[373933009,1753157449462,-1890.9,0.00017696,2]
[373933010,1753157449472,-3213.13,0.00017696,2]
[373933012,1753157449481,-460.0,0.00017696,2]
[373933015,1753157449491,-154.094237,0.00017696,2]
[373933016,1753157449501,-460.0,0.00017696,2]
[373933018,1753157449511,-151.0,0.00017696,2]
[373933021,1753157449520,-151.0,0.000177,2]
[373933022,1753157449530,-12619.94447631,0.00017724,2]
[373933024,1753157449540,-526.07605158,0.00017724,2]
[373933026,1753157449550,-160.0,0.00017724,2]
[373933029,1753157449560,-160.0,0.00017724,2]
[373933031,1753157449570,-231.06963584,0.00017724,2]
[373933033,1753157449579,-214.6393183,0.00017724,2]
[373933035,1753157449589,-215.80012421,0.00017724,2]
[373933036,1753157449598,-476.60259688,0.00017724,2]
[373933038,1753157449608,-160.0,0.00017724,2]
[373933040,1753157449617,-839.90542673,0.00017724,2]
[373933042,1753157449626,-160.0,0.00017724,2]
[373933044,1753157449636,-160.0,0.00017725,2]
[373933046,1753157449645,-160.0,0.00017725,2]
[373933049,1753157449656,-160.0,0.00017725,2]
[373933050,1753157449666,-160.0,0.00017725,2]
[373933053,1753157449676,-160.0,0.00017725,2]
[373933054,1753157449685,-160.0,0.00017725,2]
[373933056,1753157449695,-611.77339479,0.00017765,2]
[373933058,1753157449705,-460.0,0.00017765,2]
[373933061,1753157449717,-460.0,0.00017765,2]
[373933063,1753157449729,-460.0,0.00017765,2]
[373933065,1753157449739,-923.14,0.00017765,2]
[373933067,1753157449749,-1019.9,0.00017765,2]
[373933069,1753157449758,-3216.22,0.00017765,2]
[373933071,1753157449768,-460.0,0.00017766,2]
[373933073,1753157449778,-460.0,0.00017766,2]
[373933075,1753157449787,-405.1892947,0.00017766,2]
[373933077,1753157449798,-5107.47,0.00017766,2]
[373933079,1753157449809,-1520.76,0.00017766,2]
[373933081,1753157449819,-1027.18,0.00017766,2]
[373933083,1753157449828,-460.0,0.00017766,2]
[373933085,1753157449838,-460.0,0.00017766,2]
[373933087,1753157449848,-611.75,0.00017766,2]
[373933089,1753157449857,-4817.64,0.00017766,2]
[373933091,1753157449867,-460.0,0.00017766,2]
[373933093,1753157449876,-1033.11,0.00017766,2]
[373933095,1753157449886,-460.0,0.00017766,2]
[373933097,1753157449895,-2115.93,0.00017766,2]
[373933099,1753157449907,-1244.02,0.00017766,2]
[373933101,1753157449916,-151.0,0.00017766,2]
[373933103,1753157449926,-200.29364387,0.00017767,2]
[373933105,1753157449936,-198.93190959,0.00017767,2]
[373933107,1753157449946,-151.0,0.00017767,2]
[373933109,1753157449955,-716.0,0.00017767,2]
[373933111,1753157449965,-460.0,0.00017767,2]
[373933113,1753157449974,-460.0,0.00017767,2]
[373933115,1753157449983,-460.0,0.00017767,2]
[373933117,1753157449992,-460.0,0.00017767,2]
[373933119,1753157450001,-460.0,0.00017767,2]
[373933121,1753157450010,-464.55129438,0.00017767,2]
[373933123,1753157450020,-460.0,0.00017767,2]
[373933125,1753157450029,-460.0,0.00017767,2]
[373933127,1753157450039,-460.0,0.00017767,2]
[373933129,1753157450048,-460.0,0.00017767,2]
[373933131,1753157450057,-460.0,0.00017767,2]
[373933133,1753157450066,-713.91,0.00017767,2]
[373933135,1753157450076,-151.0,0.00017767,2]
[373933137,1753157450085,-460.0,0.00017767,2]
[373933139,1753157450094,-274.46037856,0.00017767,2]
[373933140,1753157450104,-460.0,0.00017767,2]
[373933142,1753157450113,-151.0,0.00017767,2]
[373933144,1753157450122,-460.0,0.00017767,2]
[373933147,1753157450132,-460.0,0.00017767,2]
[373933149,1753157450141,-460.0,0.00017767,2]
[373933150,1753157450152,-527.76,0.00017767,2]
[373933153,1753157450162,-460.0,0.00017767,2]
[373933155,1753157450171,-460.0,0.00017767,2]
[373933157,1753157450180,-486.75,0.00017767,2]
[373933159,1753157450190,-460.0,0.00017767,2]
[373933161,1753157450199,-537.44,0.00017767,2]
[373933163,1753157450209,-460.0,0.00017767,2]
[373933165,1753157450218,-515.51,0.00017767,2]
[373933167,1753157450228,-460.0,0.00017767,2]
[373933169,1753157450237,-460.0,0.00017767,2]
[373933171,1753157450247,-460.0,0.00017767,2]
[373933173,1753157450256,-460.0,0.00017767,2]
[373933175,1753157450265,-460.0,0.00017767,2]
[373933177,1753157450275,-460.0,0.00017767,2]
[373933179,1753157450284,-464.02653358,0.00017767,2]
[373933181,1753157450294,-460.0,0.00017767,2]
[373933183,1753157450303,-9991.89,0.00017767,2]
[373933185,1753157450312,-460.0,0.00017767,2]
[373933187,1753157450322,-460.0,0.00017767,2]
[373933189,1753157450331,-460.0,0.00017767,2]
[373933191,1753157450340,-460.0,0.00017767,2]
[373933192,1753157450349,-460.0,0.00017767,2]
[373933194,1753157450359,-391.00601268,0.00017767,2]